[Event "*** SCC Grand Prix: Titled Tuesday Blitz"]
[Site "Chess.com"]
[Date "2020.08.11"]
[Round "5"]
[White "Sharpchess22"]
[Black "Firegrizzly"]
[Result "0-1"]
[WhiteElo "2778"]
[BlackElo "2562"]
[TimeControl "180+1"]
[EndTime "10:54:38 PDT"]
[Termination "Firegrizzly won by resignation"]

1. d4 {[%clk 0:03:00.9]} 1... Nf6 {[%clk 0:02:51.9]} 2. c4 {[%clk 0:03:00.5]}
2... g6 {[%clk 0:02:52.8]} 3. Nc3 {[%clk 0:03:00.2]} 3... Bg7 {[%clk 0:02:53.3]}
4. e4 {[%clk 0:03:00]} 4... O-O {[%clk 0:02:53.8]} 5. h3 {[%clk 0:02:58.4]} 5...
d6 {[%clk 0:02:54.1]} 6. Be3 {[%clk 0:02:58.1]} 6... e5 {[%clk 0:02:39.7]} 7. d5
{[%clk 0:02:57.6]} 7... a5 {[%clk 0:02:36]} 8. g4 {[%clk 0:02:56.8]} 8... Na6
{[%clk 0:02:24.2]} 9. Nge2 {[%clk 0:02:56.4]} 9... Nd7 {[%clk 0:02:24]} 10. Ng3
{[%clk 0:02:53.9]} 10... Ndc5 {[%clk 0:02:23.3]} 11. h4 {[%clk 0:02:43.8]} 11...
Bf6 {[%clk 0:02:15.1]} 12. g5 {[%clk 0:02:32.6]} 12... Bg7 {[%clk 0:02:12.2]}
13. h5 {[%clk 0:02:33]} 13... Nb4 {[%clk 0:02:07.1]} 14. h6 {[%clk 0:02:18.6]}
14... Bh8 {[%clk 0:02:05.9]} 15. a3 {[%clk 0:02:18.5]} 15... Nba6 {[%clk
0:01:59.8]} 16. Rb1 {[%clk 0:02:17.2]} 16... f6 {[%clk 0:01:56.1]} 17. b4 {[%clk
0:02:12.7]} 17... axb4 {[%clk 0:01:55.4]} 18. axb4 {[%clk 0:02:13.6]} 18... Nd7
{[%clk 0:01:54.6]} 19. Bh3 {[%clk 0:02:12]} 19... Ndb8 {[%clk 0:01:47.7]} 20.
Bxc8 {[%clk 0:02:10.7]} 20... Qxc8 {[%clk 0:01:48.6]} 21. gxf6 {[%clk
0:01:56.5]} 21... Bxf6 {[%clk 0:01:49.5]} 22. Nf1 {[%clk 0:01:47.6]} 22... Qd8
{[%clk 0:01:34.1]} 23. Qg4 {[%clk 0:01:46.8]} 23... Qd7 {[%clk 0:01:30.1]} 24.
Qg3 {[%clk 0:01:38.9]} 24... c6 {[%clk 0:01:19.1]} 25. Nd2 {[%clk 0:01:37.7]}
25... Qf7 {[%clk 0:01:08.6]} 26. Kf1 {[%clk 0:01:30.6]} 26... Nd7 {[%clk
0:01:05.8]} 27. Kg2 {[%clk 0:01:30.4]} 27... c5 {[%clk 0:01:03.3]} 28. bxc5
{[%clk 0:01:28.2]} 28... Ndxc5 {[%clk 0:01:02.6]} 29. Rb6 {[%clk 0:01:26.6]}
29... Rad8 {[%clk 0:01:00.8]} 30. Rhb1 {[%clk 0:01:24.9]} 30... Rd7 {[%clk
0:00:48.3]} 31. Nb3 {[%clk 0:01:24.5]} 31... Nd3 {[%clk 0:00:37.2]} 32. Na5
{[%clk 0:01:19.8]} 32... Nf4+ {[%clk 0:00:34.7]} 33. Kf1 {[%clk 0:01:19.7]}
33... Bd8 {[%clk 0:00:32]} 34. Rxa6 {[%clk 0:01:10.1]} 34... bxa6 {[%clk
0:00:30.9]} 35. Nc6 {[%clk 0:01:11]} 35... Rb7 {[%clk 0:00:28.3]} 36. Ra1 {[%clk
0:01:09.6]} 36... Rb3 {[%clk 0:00:26.9]} 37. Ne2 {[%clk 0:01:07]} 37... Nxe2
{[%clk 0:00:24.2]} 38. Kxe2 {[%clk 0:01:06.8]} 38... Bb6 {[%clk 0:00:24.2]} 39.
Rxa6 {[%clk 0:01:03.4]} 39... Bxe3 {[%clk 0:00:23.7]} 40. fxe3 {[%clk
0:01:03.9]} 40... Rb2+ {[%clk 0:00:23.8]} 41. Kd3 {[%clk 0:01:03.6]} 41... Qf1+
{[%clk 0:00:23.5]} 0-1

[Event "*** SCC Grand Prix: Titled Tuesday Blitz"]
[Site "Chess.com"]
[Date "2020.08.11"]
[Round "5"]
[White "Murad_Ibrahimli"]
[Black "Vsevolod_Ovchinnikov"]
[Result "1-0"]
[WhiteElo "2696"]
[BlackElo "2445"]
[TimeControl "180+1"]
[EndTime "10:54:39 PDT"]
[Termination "Murad_Ibrahimli won by resignation"]

1. d4 {[%clk 0:03:00.9]} 1... Nf6 {[%clk 0:02:59.9]} 2. Nf3 {[%clk 0:03:00.3]}
2... g6 {[%clk 0:02:58.7]} 3. Bg5 {[%clk 0:02:59.6]} 3... Bg7 {[%clk 0:02:58.9]}
4. Nbd2 {[%clk 0:02:57.5]} 4... d5 {[%clk 0:02:57.9]} 5. e3 {[%clk 0:02:57.1]}
5... O-O {[%clk 0:02:55.7]} 6. Bd3 {[%clk 0:02:57.4]} 6... b6 {[%clk 0:02:55.5]}
7. O-O {[%clk 0:02:56.6]} 7... c5 {[%clk 0:02:55]} 8. c3 {[%clk 0:02:56.2]} 8...
Ba6 {[%clk 0:02:54.6]} 9. Bxa6 {[%clk 0:02:55.2]} 9... Nxa6 {[%clk 0:02:55.5]}
10. Ne5 {[%clk 0:02:54.6]} 10... Nc7 {[%clk 0:02:47]} 11. a4 {[%clk 0:02:53.9]}
11... h6 {[%clk 0:02:43.3]} 12. Bh4 {[%clk 0:02:51.4]} 12... Nce8 {[%clk
0:02:35.1]} 13. a5 {[%clk 0:02:50.2]} 13... Rc8 {[%clk 0:02:05.5]} 14. axb6
{[%clk 0:02:47.6]} 14... axb6 {[%clk 0:02:06.4]} 15. Ra7 {[%clk 0:02:42.5]}
15... g5 {[%clk 0:01:27.3]} 16. Bg3 {[%clk 0:02:39.8]} 16... Nd6 {[%clk
0:01:27.8]} 17. Qa4 {[%clk 0:02:38.2]} 17... Qe8 {[%clk 0:01:22.9]} 18. Qxe8
{[%clk 0:02:30.6]} 18... Rfxe8 {[%clk 0:01:23.8]} 19. Rfa1 {[%clk 0:02:16.4]}
19... Nfe4 {[%clk 0:01:11.4]} 20. Nxe4 {[%clk 0:02:15.7]} 20... Nxe4 {[%clk
0:01:12.3]} 21. Nd7 {[%clk 0:02:07.7]} 21... Nxg3 {[%clk 0:01:12.2]} 22. hxg3
{[%clk 0:02:06.8]} 22... Rc6 {[%clk 0:01:08.4]} 23. Rb7 {[%clk 0:02:02.5]} 23...
cxd4 {[%clk 0:01:06.2]} 24. exd4 {[%clk 0:02:00.7]} 24... e5 {[%clk 0:00:54.3]}
25. dxe5 {[%clk 0:01:59.1]} 25... Bxe5 {[%clk 0:00:52.5]} 26. Re1 {[%clk
0:01:58.5]} 26... Rce6 {[%clk 0:00:52.5]} 27. Rxb6 {[%clk 0:01:52.1]} 27... Bd6
{[%clk 0:00:21]} 28. Nf6+ {[%clk 0:01:24.5]} 28... Kh8 {[%clk 0:00:15.8]} 29.
Rxe6 {[%clk 0:01:22.4]} 29... Rxe6 {[%clk 0:00:15.6]} 30. Nxd5 {[%clk
0:01:22.1]} 30... Kg7 {[%clk 0:00:14.5]} 31. Ne3 {[%clk 0:01:19.9]} 31... Kf6
{[%clk 0:00:10]} 32. Kf1 {[%clk 0:01:18.5]} 32... Bc5 {[%clk 0:00:08]} 33. Rxe6+
{[%clk 0:01:16.5]} 33... fxe6 {[%clk 0:00:08.9]} 34. Ng4+ {[%clk 0:01:15.9]}
34... Kg6 {[%clk 0:00:08.4]} 35. b4 {[%clk 0:01:15.3]} 35... Bb6 {[%clk
0:00:08.1]} 36. c4 {[%clk 0:01:14.4]} 36... h5 {[%clk 0:00:07.8]} 37. c5 {[%clk
0:01:14.1]} 37... Bxc5 {[%clk 0:00:06.2]} 38. bxc5 {[%clk 0:01:12.1]} 38... hxg4
{[%clk 0:00:06.6]} 39. c6 {[%clk 0:01:12.1]} 1-0

[Event "*** SCC Grand Prix: Titled Tuesday Blitz"]
[Site "Chess.com"]
[Date "2020.08.11"]
[Round "5"]
[White "LuisFSiles"]
[Black "MikeSailer"]
[Result "1-0"]
[WhiteElo "2318"]
[BlackElo "2117"]
[TimeControl "180+1"]
[EndTime "10:54:43 PDT"]
[Termination "LuisFSiles won by checkmate"]

1. e4 {[%clk 0:03:00.9]} 1... d5 {[%clk 0:02:59.9]} 2. exd5 {[%clk 0:03:00.4]}
2... Qxd5 {[%clk 0:02:48.3]} 3. Nc3 {[%clk 0:02:59.7]} 3... Qd6 {[%clk
0:02:48.5]} 4. d4 {[%clk 0:02:57.8]} 4... Nf6 {[%clk 0:02:49]} 5. Bd3 {[%clk
0:02:56.4]} 5... c6 {[%clk 0:02:49.2]} 6. Nge2 {[%clk 0:02:55.8]} 6... Bg4
{[%clk 0:02:49.2]} 7. f3 {[%clk 0:02:55.2]} 7... Bh5 {[%clk 0:02:48]} 8. Bf4
{[%clk 0:02:54.4]} 8... Qd8 {[%clk 0:02:47.8]} 9. Qd2 {[%clk 0:02:52.5]} 9... e6
{[%clk 0:02:46.8]} 10. O-O-O {[%clk 0:02:51.3]} 10... Bb4 {[%clk 0:02:47.1]} 11.
h4 {[%clk 0:02:33.2]} 11... Nbd7 {[%clk 0:02:41.5]} 12. g4 {[%clk 0:02:23.9]}
12... Bg6 {[%clk 0:02:41.5]} 13. h5 {[%clk 0:02:24.3]} 13... Bxd3 {[%clk
0:02:41.8]} 14. Qxd3 {[%clk 0:02:25.2]} 14... Qa5 {[%clk 0:02:33]} 15. Kb1
{[%clk 0:02:13]} 15... O-O-O {[%clk 0:02:31.6]} 16. h6 {[%clk 0:02:12.1]} 16...
g6 {[%clk 0:02:31.1]} 17. a3 {[%clk 0:01:50.1]} 17... Be7 {[%clk 0:02:18.7]} 18.
Ne4 {[%clk 0:01:36.5]} 18... Nxe4 {[%clk 0:02:01.5]} 19. fxe4 {[%clk 0:01:31.8]}
19... Nc5 {[%clk 0:01:52.9]} 20. Qf3 {[%clk 0:01:24.3]} 20... Na4 {[%clk
0:01:49.4]} 21. Qb3 {[%clk 0:01:18.2]} 21... Nb6 {[%clk 0:01:20.2]} 22. c4
{[%clk 0:01:10.4]} 22... f5 {[%clk 0:00:49.5]} 23. c5 {[%clk 0:01:06.1]} 23...
Bxc5 {[%clk 0:00:29.3]} 24. dxc5 {[%clk 0:00:57.9]} 24... Qxc5 {[%clk
0:00:15.2]} 25. Qxe6+ {[%clk 0:00:57.6]} 25... Nd7 {[%clk 0:00:15.4]} 26. Rc1
{[%clk 0:00:40.4]} 26... Qf2 {[%clk 0:00:10.4]} 27. Rxc6+ {[%clk 0:00:37.1]}
27... bxc6 {[%clk 0:00:10.4]} 28. Qxc6# {[%clk 0:00:36.1]} 1-0

[Event "*** SCC Grand Prix: Titled Tuesday Blitz"]
[Site "Chess.com"]
[Date "2020.08.11"]
[Round "5"]
[White "c_r_e_e_p_e_r"]
[Black "Morshynska"]
[Result "1-0"]
[WhiteElo "2338"]
[BlackElo "2165"]
[TimeControl "180+1"]
[EndTime "10:54:43 PDT"]
[Termination "c_r_e_e_p_e_r won on time"]

1. e4 {[%clk 0:03:00.9]} 1... e5 {[%clk 0:02:50.5]} 2. Nf3 {[%clk 0:02:59.5]}
2... Nc6 {[%clk 0:02:47.5]} 3. Bb5 {[%clk 0:02:59.7]} 3... a6 {[%clk 0:02:46.9]}
4. Ba4 {[%clk 0:03:00.1]} 4... Nf6 {[%clk 0:02:43.8]} 5. O-O {[%clk 0:02:59.9]}
5... b5 {[%clk 0:02:43.3]} 6. Bb3 {[%clk 0:02:59.5]} 6... Bb7 {[%clk 0:02:44]}
7. d4 {[%clk 0:02:59.8]} 7... Nxd4 {[%clk 0:02:41.8]} 8. Nxe5 {[%clk 0:02:55.1]}
8... Nxb3 {[%clk 0:02:34.1]} 9. axb3 {[%clk 0:02:56]} 9... d6 {[%clk 0:02:20.4]}
10. Nf3 {[%clk 0:02:54.8]} 10... Nxe4 {[%clk 0:02:04.5]} 11. Re1 {[%clk
0:02:52.1]} 11... Be7 {[%clk 0:02:03.5]} 12. Qd4 {[%clk 0:02:46.6]} 12... Nf6
{[%clk 0:01:39.4]} 13. Qe3 {[%clk 0:02:45.5]} 13... Qd7 {[%clk 0:01:18.1]} 14.
Nc3 {[%clk 0:02:38.1]} 14... Bxf3 {[%clk 0:00:49.8]} 15. Qxf3 {[%clk 0:02:34.7]}
15... O-O {[%clk 0:00:47.2]} 16. Bg5 {[%clk 0:02:22.4]} 16... h6 {[%clk
0:00:45.6]} 17. Bxf6 {[%clk 0:02:06]} 17... Bxf6 {[%clk 0:00:46.5]} 18. Nd5
{[%clk 0:02:06.1]} 18... Bxb2 {[%clk 0:00:39.5]} 19. Rad1 {[%clk 0:02:03.3]}
19... Rae8 {[%clk 0:00:27]} 20. Rxe8 {[%clk 0:01:54.4]} 20... Rxe8 {[%clk
0:00:27.9]} 21. c3 {[%clk 0:01:54.9]} 21... c6 {[%clk 0:00:15.7]} 22. Nb4 {[%clk
0:01:48.1]} 22... d5 {[%clk 0:00:14.9]} 23. Nxa6 {[%clk 0:01:44.9]} 23... Ba3
{[%clk 0:00:14.4]} 24. c4 {[%clk 0:01:41.2]} 24... bxc4 {[%clk 0:00:13.4]} 25.
bxc4 {[%clk 0:01:40.6]} 25... Qb7 {[%clk 0:00:13.1]} 26. Qxa3 {[%clk 0:01:38.7]}
26... Ra8 {[%clk 0:00:11]} 27. Nc5 {[%clk 0:01:15.4]} 27... Qc8 {[%clk
0:00:09.1]} 28. Qc3 {[%clk 0:01:09.3]} 28... dxc4 {[%clk 0:00:07.6]} 29. Qxc4
{[%clk 0:01:09.5]} 29... Kh7 {[%clk 0:00:05.9]} 30. Qxf7 {[%clk 0:01:07]} 30...
Qg4 {[%clk 0:00:05.8]} 31. f3 {[%clk 0:01:00.1]} 31... Qg5 {[%clk 0:00:05.6]}
32. Ne4 {[%clk 0:00:55]} 32... Qe3+ {[%clk 0:00:04.6]} 33. Kh1 {[%clk
0:00:55.4]} 1-0

[Event "*** SCC Grand Prix: Titled Tuesday Blitz"]
[Site "Chess.com"]
[Date "2020.08.11"]
[Round "5"]
[White "Rubinstein_Akiba"]
[Black "DenLaz"]
[Result "0-1"]
[WhiteElo "2441"]
[BlackElo "2677"]
[TimeControl "180+1"]
[EndTime "10:54:50 PDT"]
[Termination "DenLaz won by resignation"]

1. e4 {[%clk 0:03:00.9]} 1... e6 {[%clk 0:02:58.9]} 2. d4 {[%clk 0:02:59.4]}
2... d5 {[%clk 0:02:59.2]} 3. Bd3 {[%clk 0:02:57.2]} 3... dxe4 {[%clk
0:02:57.5]} 4. Bxe4 {[%clk 0:02:58.1]} 4... Nf6 {[%clk 0:02:57.7]} 5. Bf3 {[%clk
0:02:58.4]} 5... c5 {[%clk 0:02:58.3]} 6. Ne2 {[%clk 0:02:59]} 6... Be7 {[%clk
0:02:58.4]} 7. Be3 {[%clk 0:02:58.2]} 7... O-O {[%clk 0:02:52.6]} 8. O-O {[%clk
0:02:47.8]} 8... cxd4 {[%clk 0:02:48.5]} 9. Nxd4 {[%clk 0:02:47.7]} 9... Nbd7
{[%clk 0:02:42]} 10. Nc3 {[%clk 0:02:42.6]} 10... Ne5 {[%clk 0:02:40.5]} 11. Qe2
{[%clk 0:02:34.8]} 11... Nxf3+ {[%clk 0:02:37]} 12. Qxf3 {[%clk 0:02:35.7]}
12... a6 {[%clk 0:02:32.8]} 13. Rad1 {[%clk 0:02:31.7]} 13... Qc7 {[%clk
0:02:31.9]} 14. Nb3 {[%clk 0:02:19.9]} 14... Bd7 {[%clk 0:02:26.8]} 15. Bf4
{[%clk 0:02:15.6]} 15... e5 {[%clk 0:02:23.1]} 16. Bg5 {[%clk 0:02:13.6]} 16...
Bg4 {[%clk 0:02:14.3]} 17. Nd5 {[%clk 0:01:46]} 17... Bxf3 {[%clk 0:02:06.7]}
18. Nxc7 {[%clk 0:01:44.1]} 18... Bxd1 {[%clk 0:02:06.8]} 19. Nxa8 {[%clk
0:01:37.5]} 19... Bxc2 {[%clk 0:02:03.1]} 20. Nb6 {[%clk 0:01:36.7]} 20... Bxb3
{[%clk 0:01:46.1]} 21. axb3 {[%clk 0:01:37.6]} 21... Rd8 {[%clk 0:01:46.6]} 22.
Rc1 {[%clk 0:01:28.6]} 22... h6 {[%clk 0:01:43.5]} 23. Bxf6 {[%clk 0:01:08]}
23... Bxf6 {[%clk 0:01:44.4]} 24. g3 {[%clk 0:01:03.6]} 24... e4 {[%clk
0:01:33.8]} 25. Rc7 {[%clk 0:01:00.3]} 25... Rd3 {[%clk 0:01:27.8]} 26. b4
{[%clk 0:00:51.5]} 26... Bxb2 {[%clk 0:01:18.5]} 27. Rxb7 {[%clk 0:00:45.3]}
27... Bd4 {[%clk 0:01:15.9]} 28. Nc4 {[%clk 0:00:41.6]} 28... f5 {[%clk
0:01:05.4]} 29. Rb8+ {[%clk 0:00:20.6]} 29... Kh7 {[%clk 0:01:04.3]} 30. Ra8
{[%clk 0:00:20.9]} 30... Rd1+ {[%clk 0:01:00.1]} 31. Kg2 {[%clk 0:00:19.8]}
31... Rc1 {[%clk 0:01:00.4]} 32. Nd6 {[%clk 0:00:18.8]} 32... Rc2 {[%clk
0:01:00]} 33. Kh3 {[%clk 0:00:16.8]} 33... Rxf2 {[%clk 0:00:58.5]} 34. Rxa6
{[%clk 0:00:15.6]} 34... e3 {[%clk 0:00:58.6]} 35. Nc4 {[%clk 0:00:15.6]} 35...
e2 {[%clk 0:00:58.3]} 36. Re6 {[%clk 0:00:16.3]} 36... Bc3 {[%clk 0:00:58.2]}
0-1

[Event "*** SCC Grand Prix: Titled Tuesday Blitz"]
[Site "Chess.com"]
[Date "2020.08.11"]
[Round "5"]
[White "Sn00pPawn"]
[Black "Chuchofrio1"]
[Result "0-1"]
[WhiteElo "2008"]
[BlackElo "2286"]
[TimeControl "180+1"]
[EndTime "10:54:51 PDT"]
[Termination "Chuchofrio1 won on time"]

1. e4 {[%clk 0:03:00.9]} 1... c5 {[%clk 0:02:59.4]} 2. Nf3 {[%clk 0:03:00.2]}
2... Nc6 {[%clk 0:02:59.1]} 3. Bb5 {[%clk 0:03:00.6]} 3... e6 {[%clk 0:02:58.3]}
4. Bxc6 {[%clk 0:02:48.9]} 4... bxc6 {[%clk 0:02:59.2]} 5. d3 {[%clk 0:02:45.2]}
5... Ne7 {[%clk 0:02:59.4]} 6. Qe2 {[%clk 0:02:37.8]} 6... d5 {[%clk 0:02:57.4]}
7. Nc3 {[%clk 0:02:29.8]} 7... Ng6 {[%clk 0:02:54.4]} 8. h4 {[%clk 0:02:16.3]}
8... h5 {[%clk 0:02:51.1]} 9. b3 {[%clk 0:01:58]} 9... Be7 {[%clk 0:02:38.4]}
10. g3 {[%clk 0:01:51.8]} 10... Qa5 {[%clk 0:02:29.2]} 11. Bd2 {[%clk
0:01:50.6]} 11... Qd8 {[%clk 0:02:28.7]} 12. e5 {[%clk 0:01:42.7]} 12... a5
{[%clk 0:02:20.3]} 13. Na4 {[%clk 0:01:35.9]} 13... f6 {[%clk 0:01:37.7]} 14.
O-O {[%clk 0:00:43.7]} 14... f5 {[%clk 0:01:13.1]} 15. c4 {[%clk 0:00:39.7]}
15... f4 {[%clk 0:01:11.2]} 16. d4 {[%clk 0:00:28.4]} 16... cxd4 {[%clk
0:00:56.2]} 17. Qd3 {[%clk 0:00:27.1]} 17... Kf7 {[%clk 0:00:56]} 18. Rae1
{[%clk 0:00:02.9]} 18... Rh6 {[%clk 0:00:47.4]} 19. Nxd4 {[%clk 0:00:02.4]}
19... c5 {[%clk 0:00:42.1]} 20. Nc6 {[%clk 0:00:02.2]} 20... Qd7 {[%clk
0:00:35.8]} 21. Nxe7 {[%clk 0:00:03.1]} 21... Qxe7 {[%clk 0:00:32.9]} 22. cxd5
{[%clk 0:00:02.6]} 22... Nxh4 {[%clk 0:00:27.5]} 23. dxe6+ {[%clk 0:00:02.3]}
23... Bxe6 {[%clk 0:00:26.1]} 24. gxh4 {[%clk 0:00:03.2]} 24... Qxh4 {[%clk
0:00:25.3]} 0-1

[Event "*** SCC Grand Prix: Titled Tuesday Blitz"]
[Site "Chess.com"]
[Date "2020.08.11"]
[Round "5"]
[White "frederiksvane"]
[Black "MasterKroket"]
[Result "1-0"]
[WhiteElo "2587"]
[BlackElo "2411"]
[TimeControl "180+1"]
[EndTime "10:54:52 PDT"]
[Termination "frederiksvane won by resignation"]

1. e4 {[%clk 0:03:00.9]} 1... c5 {[%clk 0:03:00.2]} 2. Nf3 {[%clk 0:03:01]} 2...
e6 {[%clk 0:03:00.7]} 3. d4 {[%clk 0:03:01.2]} 3... cxd4 {[%clk 0:03:01.6]} 4.
Nxd4 {[%clk 0:03:02.1]} 4... Nc6 {[%clk 0:03:02.1]} 5. Nc3 {[%clk 0:03:02.7]}
5... Qc7 {[%clk 0:03:02.6]} 6. g3 {[%clk 0:03:03.1]} 6... a6 {[%clk 0:03:02.5]}
7. Bg2 {[%clk 0:03:03.5]} 7... b5 {[%clk 0:03:02.1]} 8. O-O {[%clk 0:03:01.4]}
8... Bb7 {[%clk 0:03:01.9]} 9. Nxc6 {[%clk 0:02:56.3]} 9... Bxc6 {[%clk
0:03:01.4]} 10. Re1 {[%clk 0:02:56.3]} 10... Be7 {[%clk 0:03:00.1]} 11. Nd5
{[%clk 0:02:44.7]} 11... Qb7 {[%clk 0:03:00.1]} 12. Bf4 {[%clk 0:02:38.7]} 12...
Rc8 {[%clk 0:02:55.3]} 13. c3 {[%clk 0:02:25.4]} 13... h5 {[%clk 0:02:42.6]} 14.
Qd4 {[%clk 0:02:08]} 14... Nf6 {[%clk 0:02:21.7]} 15. Nxe7 {[%clk 0:02:05.3]}
15... Kxe7 {[%clk 0:02:21.5]} 16. Bd6+ {[%clk 0:02:04]} 16... Ke8 {[%clk
0:02:16.9]} 17. Rad1 {[%clk 0:01:30.5]} 17... h4 {[%clk 0:02:13.2]} 18. g4
{[%clk 0:01:23.6]} 18... h3 {[%clk 0:02:01]} 19. Bf3 {[%clk 0:01:22.4]} 19...
Rh6 {[%clk 0:01:55.5]} 20. Bb4 {[%clk 0:00:59.5]} 20... a5 {[%clk 0:01:47]} 21.
Bxa5 {[%clk 0:00:56.1]} 21... Rg6 {[%clk 0:01:45.2]} 22. Bb4 {[%clk 0:00:51.1]}
22... d5 {[%clk 0:01:34.6]} 23. exd5 {[%clk 0:00:35.9]} 23... Bd7 {[%clk
0:01:05.5]} 24. dxe6 {[%clk 0:00:22.7]} 24... Bc6 {[%clk 0:00:51.9]} 25. Qd6
{[%clk 0:00:17.7]} 25... Nh7 {[%clk 0:00:40.7]} 26. Qd7+ {[%clk 0:00:08.7]}
26... Bxd7 {[%clk 0:00:30.8]} 27. exd7+ {[%clk 0:00:09]} 27... Kd8 {[%clk
0:00:31]} 28. Ba5+ {[%clk 0:00:09.2]} 28... Rb6 {[%clk 0:00:30.1]} 29. Bxb7
{[%clk 0:00:07.9]} 1-0

[Event "*** SCC Grand Prix: Titled Tuesday Blitz"]
[Site "Chess.com"]
[Date "2020.08.11"]
[Round "5"]
[White "aa175"]
[Black "Shivagami"]
[Result "1-0"]
[WhiteElo "2483"]
[BlackElo "2232"]
[TimeControl "180+1"]
[EndTime "10:54:52 PDT"]
[Termination "aa175 won by resignation"]

1. d4 {[%clk 0:03:00.9]} 1... Nf6 {[%clk 0:02:57.7]} 2. Nf3 {[%clk 0:02:50.7]}
2... d5 {[%clk 0:02:55.6]} 3. Bf4 {[%clk 0:02:51.2]} 3... c5 {[%clk 0:02:53.2]}
4. e3 {[%clk 0:02:52.1]} 4... Nc6 {[%clk 0:02:52.6]} 5. Nbd2 {[%clk 0:02:52.1]}
5... Bf5 {[%clk 0:02:49.3]} 6. c3 {[%clk 0:02:52.8]} 6... Qb6 {[%clk 0:02:48.5]}
7. Qb3 {[%clk 0:02:45.8]} 7... c4 {[%clk 0:02:44.4]} 8. Qxb6 {[%clk 0:02:45.3]}
8... axb6 {[%clk 0:02:44.9]} 9. a3 {[%clk 0:02:46.2]} 9... b5 {[%clk 0:02:44.5]}
10. Rc1 {[%clk 0:02:42.5]} 10... Nd7 {[%clk 0:02:40.2]} 11. Nh4 {[%clk
0:02:25.6]} 11... Be4 {[%clk 0:02:29.7]} 12. f3 {[%clk 0:02:15.9]} 12... Bd3
{[%clk 0:02:13.8]} 13. Bxd3 {[%clk 0:02:13.5]} 13... cxd3 {[%clk 0:02:13.9]} 14.
e4 {[%clk 0:02:11]} 14... e6 {[%clk 0:02:13.6]} 15. exd5 {[%clk 0:02:06.5]}
15... exd5 {[%clk 0:02:11.7]} 16. Kf2 {[%clk 0:02:06.4]} 16... f6 {[%clk
0:01:54.1]} 17. Rhe1+ {[%clk 0:01:59.1]} 17... Kf7 {[%clk 0:01:53.2]} 18. Nf5
{[%clk 0:01:57.7]} 18... g5 {[%clk 0:01:30.5]} 19. Bd6 {[%clk 0:01:54.9]} 19...
Kg6 {[%clk 0:01:23.2]} 20. g4 {[%clk 0:01:45.3]} 20... h5 {[%clk 0:01:16.9]} 21.
Bxf8 {[%clk 0:01:34.2]} 21... hxg4 {[%clk 0:00:58.6]} 22. Ne7+ {[%clk
0:01:17.1]} 22... Nxe7 {[%clk 0:00:39.3]} 23. Bxe7 {[%clk 0:01:18]} 23... Rxh2+
{[%clk 0:00:36.8]} 24. Ke3 {[%clk 0:01:13.8]} 24... Rah8 {[%clk 0:00:15.2]} 25.
Bd6 {[%clk 0:01:04.6]} 25... Rg2 {[%clk 0:00:13.7]} 26. Kxd3 {[%clk 0:00:59.7]}
26... gxf3 {[%clk 0:00:12.7]} 27. Nxf3 {[%clk 0:01:00.6]} 27... Rh3 {[%clk
0:00:12.1]} 28. Re3 {[%clk 0:01:01.1]} 28... g4 {[%clk 0:00:10.9]} 29. Nd2
{[%clk 0:00:49.9]} 29... Kg5 {[%clk 0:00:09.6]} 30. Rxh3 {[%clk 0:00:47]} 30...
gxh3 {[%clk 0:00:10.5]} 31. Rh1 {[%clk 0:00:45.5]} 31... Kg4 {[%clk 0:00:11.1]}
32. Nf1 {[%clk 0:00:41.5]} 32... f5 {[%clk 0:00:10.8]} 33. Ne3+ {[%clk
0:00:42.4]} 33... Kf3 {[%clk 0:00:10.3]} 34. Rxh3+ {[%clk 0:00:40.8]} 1-0

[Event "*** SCC Grand Prix: Titled Tuesday Blitz"]
[Site "Chess.com"]
[Date "2020.08.11"]
[Round "5"]
[White "pirulillo"]
[Black "reniite"]
[Result "1-0"]
[WhiteElo "2231"]
[BlackElo "1948"]
[TimeControl "180+1"]
[EndTime "10:54:53 PDT"]
[Termination "pirulillo won by checkmate"]

1. e4 {[%clk 0:01:15.5]} 1... e5 {[%clk 0:01:57.3]} 2. d4 {[%clk 0:01:01.9]}
2... exd4 {[%clk 0:01:57]} 3. f4 {[%clk 0:00:58.1]} 3... d5 {[%clk 0:01:56.7]}
4. e5 {[%clk 0:00:57.9]} 4... c5 {[%clk 0:01:56.2]} 5. Nf3 {[%clk 0:00:58]} 5...
Nc6 {[%clk 0:01:55.9]} 6. c4 {[%clk 0:00:58.5]} 6... dxc3 {[%clk 0:01:50.2]} 7.
Nxc3 {[%clk 0:00:57.5]} 7... d4 {[%clk 0:01:50.4]} 8. Ne4 {[%clk 0:00:56.2]}
8... Qd5 {[%clk 0:01:32.3]} 9. Ng3 {[%clk 0:00:53.5]} 9... Bg4 {[%clk
0:01:31.2]} 10. b3 {[%clk 0:00:43.7]} 10... O-O-O {[%clk 0:01:27.7]} 11. Bc4
{[%clk 0:00:43]} 11... Bxf3 {[%clk 0:01:23]} 12. gxf3 {[%clk 0:00:42]} 12... Qd7
{[%clk 0:01:21]} 13. O-O {[%clk 0:00:41.6]} 13... Nh6 {[%clk 0:01:09.7]} 14. Re1
{[%clk 0:00:41.6]} 14... Re8 {[%clk 0:01:04.2]} 15. a3 {[%clk 0:00:40.3]} 15...
Kb8 {[%clk 0:00:59.9]} 16. Qd3 {[%clk 0:00:39.3]} 16... g6 {[%clk 0:00:54.5]}
17. Bd2 {[%clk 0:00:39.3]} 17... Nf5 {[%clk 0:00:53.6]} 18. Nxf5 {[%clk
0:00:38.5]} 18... Qxf5 {[%clk 0:00:52.5]} 19. Qxf5 {[%clk 0:00:37.9]} 19... gxf5
{[%clk 0:00:53.4]} 20. Bxf7 {[%clk 0:00:37.7]} 20... Rd8 {[%clk 0:00:49.4]} 21.
Be6 {[%clk 0:00:34.6]} 21... Ne7 {[%clk 0:00:48]} 22. b4 {[%clk 0:00:34.6]}
22... cxb4 {[%clk 0:00:20.5]} 23. axb4 {[%clk 0:00:32.7]} 23... Nc6 {[%clk
0:00:21.1]} 24. b5 {[%clk 0:00:31.8]} 24... Ne7 {[%clk 0:00:20.3]} 25. Bb4
{[%clk 0:00:28.1]} 25... h5 {[%clk 0:00:20]} 26. Bd6+ {[%clk 0:00:27.7]} 26...
Ka8 {[%clk 0:00:19.9]} 27. Bc7 {[%clk 0:00:26.2]} 27... Bg7 {[%clk 0:00:10.7]}
28. Rxa7+ {[%clk 0:00:26]} 28... Kxa7 {[%clk 0:00:10.8]} 29. Ra1# {[%clk
0:00:26.9]} 1-0